[Event "Late-Titled-Tuesday-Blitz-May-28-2024"]
[Site "Chess.com"]
[Date "2024.05.28"]
[Round "9"]
[White "karinachess1"]
[Black "Abund"]
[Result "0-1"]
[WhiteElo "2648"]
[BlackElo "2833"]
[TimeControl "180+1"]
[EndTime "15:45:52 PDT"]
[Termination "Abund won by resignation"]

1. d4 {[%clk 0:03:00.9]} 1... d5 {[%clk 0:02:59.9]} 2. c4 {[%clk 0:03:00.9]}
2... e6 {[%clk 0:03:00.4]} 3. Nc3 {[%clk 0:03:01.1]} 3... Nf6 {[%clk 0:03:00.9]}
4. cxd5 {[%clk 0:03:01.5]} 4... exd5 {[%clk 0:03:01.6]} 5. Bg5 {[%clk
0:03:01.7]} 5... c6 {[%clk 0:03:02.2]} 6. e3 {[%clk 0:03:02]} 6... h6 {[%clk
0:03:02.5]} 7. Bh4 {[%clk 0:03:01.9]} 7... Be7 {[%clk 0:03:03.1]} 8. Bd3 {[%clk
0:03:02.1]} 8... O-O {[%clk 0:03:03.3]} 9. Nf3 {[%clk 0:02:59.4]} 9... Ne4
{[%clk 0:03:03.3]} 10. Bxe7 {[%clk 0:02:57.6]} 10... Qxe7 {[%clk 0:03:04.2]} 11.
Qc2 {[%clk 0:02:58.1]} 11... Re8 {[%clk 0:03:02.9]} 12. O-O {[%clk 0:02:57]}
12... Bf5 {[%clk 0:02:59.8]} 13. a3 {[%clk 0:02:56.6]} 13... Nd7 {[%clk
0:02:54.4]} 14. b4 {[%clk 0:02:56.8]} 14... a6 {[%clk 0:02:50.1]} 15. Na4 {[%clk
0:02:54.4]} 15... b5 {[%clk 0:02:34.2]} 16. Nc5 {[%clk 0:02:48.9]} 16... Ndxc5
{[%clk 0:02:05]} 17. bxc5 {[%clk 0:02:31.2]} 17... f6 {[%clk 0:01:25.3]} 18.
Rfe1 {[%clk 0:02:10.9]} 18... Qf7 {[%clk 0:01:10.4]} 19. Nd2 {[%clk 0:02:02]}
19... Nxd2 {[%clk 0:01:02.3]} 20. Bxf5 {[%clk 0:01:58.7]} 20... Ne4 {[%clk
0:00:51.8]} 21. f3 {[%clk 0:01:54.9]} 21... g6 {[%clk 0:00:41.2]} 22. fxe4
{[%clk 0:01:22.8]} 22... gxf5 {[%clk 0:00:40.2]} 23. exf5 {[%clk 0:01:23.5]}
23... Re4 {[%clk 0:00:39.1]} 24. Qf2 {[%clk 0:01:02.9]} 24... Kh7 {[%clk
0:00:31.8]} 25. Qf3 {[%clk 0:00:57.6]} 25... a5 {[%clk 0:00:27.2]} 26. Rf1
{[%clk 0:00:46.2]} 26... Rg8 {[%clk 0:00:19]} 27. Rae1 {[%clk 0:00:32.9]} 27...
Rg5 {[%clk 0:00:13.3]} 28. g3 {[%clk 0:00:28.6]} 28... Qg7 {[%clk 0:00:11.6]}
29. Kh1 {[%clk 0:00:28]} 29... Qc7 {[%clk 0:00:11.6]} 30. Rg1 {[%clk 0:00:26.1]}
30... Qd7 {[%clk 0:00:11.2]} 31. Ref1 {[%clk 0:00:19.9]} 31... Rg8 {[%clk
0:00:08.3]} 32. g4 {[%clk 0:00:14.6]} 32... Qe7 {[%clk 0:00:04.8]} 33. Re1
{[%clk 0:00:14]} 33... Re8 {[%clk 0:00:05.2]} 34. Rg3 {[%clk 0:00:04.3]} 34...
Rxd4 {[%clk 0:00:05.5]} 35. exd4 {[%clk 0:00:04.2]} 35... Qxe1+ {[%clk
0:00:05.5]} 36. Rg1 {[%clk 0:00:05]} 36... Qe4 {[%clk 0:00:04.8]} 37. Qxe4
{[%clk 0:00:04.7]} 37... Rxe4 {[%clk 0:00:05.7]} 38. Rd1 {[%clk 0:00:01.2]}
38... Rxg4 {[%clk 0:00:06]} 39. h3 {[%clk 0:00:01]} 39... Rf4 {[%clk 0:00:05.9]}
40. Re1 {[%clk 0:00:01.5]} 40... Rxd4 {[%clk 0:00:05.5]} 41. Re7+ {[%clk
0:00:01.3]} 41... Kg8 {[%clk 0:00:05.8]} 42. Re6 {[%clk 0:00:01.7]} 42... b4
{[%clk 0:00:05.1]} 43. axb4 {[%clk 0:00:01.7]} 43... axb4 {[%clk 0:00:05.6]} 44.
Rxc6 {[%clk 0:00:02.1]} 44... Kf7 {[%clk 0:00:05.1]} 45. Rb6 {[%clk 0:00:02.1]}
45... Rc4 {[%clk 0:00:05]} 46. Rb7+ {[%clk 0:00:02.5]} 46... Kf8 {[%clk
0:00:04.8]} 47. Kg2 {[%clk 0:00:03.1]} 47... Rxc5 {[%clk 0:00:03.4]} 48. Rxb4
{[%clk 0:00:03]} 48... Rc3 {[%clk 0:00:03.7]} 49. Rd4 {[%clk 0:00:02.2]} 49...
Rc5 {[%clk 0:00:03.4]} 50. Kf3 {[%clk 0:00:02.4]} 50... Ke7 {[%clk 0:00:03.7]}
51. Ra4 {[%clk 0:00:02.6]} 51... Kd6 {[%clk 0:00:03.6]} 52. Ra6+ {[%clk
0:00:02.4]} 52... Ke5 {[%clk 0:00:04.1]} 53. Kg4 {[%clk 0:00:01.7]} 53... Rc4+
{[%clk 0:00:02.1]} 54. Kh5 {[%clk 0:00:02.3]} 54... Kxf5 {[%clk 0:00:02.5]} 55.
Rd6 {[%clk 0:00:02.2]} 55... Ke5 {[%clk 0:00:02.6]} 56. Rd8 {[%clk 0:00:02.8]}
56... Rf4 {[%clk 0:00:02.1]} 57. h4 {[%clk 0:00:02.1]} 57... d4 {[%clk
0:00:02.3]} 58. Re8+ {[%clk 0:00:02.6]} 58... Kf5 {[%clk 0:00:02.6]} 59. Rd8
{[%clk 0:00:02.9]} 59... Ke4 {[%clk 0:00:03.1]} 60. Re8+ {[%clk 0:00:03.4]}
60... Kf3 {[%clk 0:00:03.3]} 61. Rd8 {[%clk 0:00:03.6]} 61... Ke3 {[%clk
0:00:03.7]} 62. Kxh6 {[%clk 0:00:04.2]} 62... Rxh4+ {[%clk 0:00:03.3]} 63. Kg6
{[%clk 0:00:04.8]} 63... Rf4 {[%clk 0:00:03.8]} 64. Re8+ {[%clk 0:00:04.1]}
64... Kd2 {[%clk 0:00:03.8]} 65. Rd8 {[%clk 0:00:04.4]} 65... d3 {[%clk
0:00:04.3]} 66. Kh5 {[%clk 0:00:04.9]} 66... Ke2 {[%clk 0:00:04.3]} 67. Re8+
{[%clk 0:00:05.2]} 67... Kf2 {[%clk 0:00:04.5]} 68. Re4 {[%clk 0:00:05.6]} 68...
Rxe4 {[%clk 0:00:03.9]} 0-1

[Event "Late-Titled-Tuesday-Blitz-May-28-2024"]
[Site "Chess.com"]
[Date "2024.05.28"]
[Round "9"]
[White "WildBizon"]
[Black "LiemLe"]
[Result "0-1"]
[WhiteElo "2731"]
[BlackElo "3018"]
[TimeControl "180+1"]
[EndTime "15:45:55 PDT"]
[Termination "LiemLe won by resignation"]

1. e4 {[%clk 0:02:52.3]} 1... Nf6 {[%clk 0:03:00.9]} 2. e5 {[%clk 0:02:51.4]}
2... Nd5 {[%clk 0:03:01.4]} 3. d4 {[%clk 0:02:49.6]} 3... d6 {[%clk 0:03:01.7]}
4. c4 {[%clk 0:02:48.9]} 4... Nb6 {[%clk 0:03:01.9]} 5. exd6 {[%clk 0:02:49.3]}
5... exd6 {[%clk 0:02:59.1]} 6. Nc3 {[%clk 0:02:49]} 6... Be7 {[%clk 0:02:59.5]}
7. Bd3 {[%clk 0:02:48.7]} 7... O-O {[%clk 0:03:00]} 8. Nge2 {[%clk 0:02:49]}
8... Nc6 {[%clk 0:02:58.5]} 9. Be3 {[%clk 0:02:46.8]} 9... Re8 {[%clk
0:02:53.4]} 10. O-O {[%clk 0:02:43.8]} 10... Bg5 {[%clk 0:02:43]} 11. Qd2 {[%clk
0:02:32.8]} 11... Bxe3 {[%clk 0:02:35.3]} 12. fxe3 {[%clk 0:02:33.7]} 12... Qg5
{[%clk 0:02:28.6]} 13. Nf4 {[%clk 0:02:30.8]} 13... Bf5 {[%clk 0:02:20.4]} 14.
h4 {[%clk 0:02:12.9]} 14... Qg4 {[%clk 0:02:20.1]} 15. Bxf5 {[%clk 0:02:03.7]}
15... Qxf5 {[%clk 0:02:21]} 16. Nfd5 {[%clk 0:01:46.8]} 16... Qd7 {[%clk
0:02:20.5]} 17. b3 {[%clk 0:01:46.6]} 17... Nxd5 {[%clk 0:02:15.4]} 18. cxd5
{[%clk 0:01:41.7]} 18... Ne7 {[%clk 0:02:11.2]} 19. e4 {[%clk 0:01:41.8]} 19...
f6 {[%clk 0:02:03.7]} 20. h5 {[%clk 0:01:40.5]} 20... h6 {[%clk 0:02:03.7]} 21.
Qf4 {[%clk 0:01:33.3]} 21... Rac8 {[%clk 0:01:31]} 22. Qg3 {[%clk 0:01:17.6]}
22... Kh8 {[%clk 0:01:29]} 23. Rf4 {[%clk 0:01:10.7]} 23... c6 {[%clk
0:01:25.1]} 24. Rg4 {[%clk 0:01:10.1]} 24... cxd5 {[%clk 0:01:22.6]} 25. Nxd5
{[%clk 0:00:47]} 25... Nxd5 {[%clk 0:01:20.7]} 26. exd5 {[%clk 0:00:47.9]} 26...
Re7 {[%clk 0:01:06.3]} 27. Kh2 {[%clk 0:00:46.1]} 27... Qf5 {[%clk 0:01:04.1]}
28. Qh3 {[%clk 0:00:41.7]} 28... Rc3 {[%clk 0:00:55.4]} 29. Rg3 {[%clk 0:00:39]}
29... Qxh3+ {[%clk 0:00:44.9]} 30. Kxh3 {[%clk 0:00:37.3]} 30... Rc2 {[%clk
0:00:44.5]} 31. a4 {[%clk 0:00:34.9]} 31... Kg8 {[%clk 0:00:43.5]} 32. Rd3
{[%clk 0:00:31.4]} 32... Ree2 {[%clk 0:00:40.1]} 33. g3 {[%clk 0:00:31.4]} 33...
Kf7 {[%clk 0:00:39.6]} 34. a5 {[%clk 0:00:22.6]} 34... Rh2+ {[%clk 0:00:39.5]}
35. Kg4 {[%clk 0:00:22.5]} 35... Rcf2 {[%clk 0:00:40.4]} 36. Rf3 {[%clk
0:00:21.3]} 36... Rxf3 {[%clk 0:00:40.7]} 37. Kxf3 {[%clk 0:00:21.2]} 37... Rxh5
{[%clk 0:00:41.6]} 38. Ke4 {[%clk 0:00:20.8]} 38... Ke7 {[%clk 0:00:35.3]} 39.
a6 {[%clk 0:00:16.9]} 39... b6 {[%clk 0:00:35]} 40. Rc1 {[%clk 0:00:17.2]} 40...
Kd7 {[%clk 0:00:33.7]} 41. Rc3 {[%clk 0:00:17.3]} 41... Rg5 {[%clk 0:00:33.4]}
42. b4 {[%clk 0:00:14.5]} 42... g6 {[%clk 0:00:29.9]} 43. Rf3 {[%clk 0:00:12]}
43... Rg4+ {[%clk 0:00:29.5]} 44. Kd3 {[%clk 0:00:12.2]} 44... f5 {[%clk
0:00:26.5]} 45. Kc4 {[%clk 0:00:12.6]} 45... Re4 {[%clk 0:00:26]} 46. Rf2 {[%clk
0:00:12.1]} 46... h5 {[%clk 0:00:25.5]} 47. Rf3 {[%clk 0:00:12.2]} 47... Kc7
{[%clk 0:00:21.5]} 48. b5 {[%clk 0:00:09.4]} 48... Kd7 {[%clk 0:00:21.5]} 49.
Kd3 {[%clk 0:00:09.8]} 49... Re1 {[%clk 0:00:20.1]} 50. Kc4 {[%clk 0:00:10]}
50... Ke7 {[%clk 0:00:18.7]} 51. Kb4 {[%clk 0:00:09.6]} 51... Rd1 {[%clk
0:00:16.4]} 52. Kc4 {[%clk 0:00:09.5]} 52... Kd7 {[%clk 0:00:15.5]} 53. Re3
{[%clk 0:00:09.7]} 53... Rg1 {[%clk 0:00:16.1]} 54. Kb4 {[%clk 0:00:08.7]} 54...
Rg2 {[%clk 0:00:16.3]} 55. Kc4 {[%clk 0:00:08.9]} 55... g5 {[%clk 0:00:11.8]}
56. Rf3 {[%clk 0:00:09.2]} 56... f4 {[%clk 0:00:11.3]} 57. gxf4 {[%clk
0:00:08.9]} 57... g4 {[%clk 0:00:11.9]} 58. Rf1 {[%clk 0:00:08.3]} 58... g3
{[%clk 0:00:11.7]} 59. f5 {[%clk 0:00:08.8]} 59... Rf2 {[%clk 0:00:12.1]} 60.
Rg1 {[%clk 0:00:07.3]} 60... h4 {[%clk 0:00:12.3]} 61. Kd3 {[%clk 0:00:06.8]}
61... Rxf5 {[%clk 0:00:12.1]} 62. Ke4 {[%clk 0:00:05.4]} 62... Rg5 {[%clk
0:00:12.6]} 63. Kf4 {[%clk 0:00:05.4]} 63... Rxd5 {[%clk 0:00:12.7]} 64. Kg4
{[%clk 0:00:04.5]} 64... Rxd4+ {[%clk 0:00:12.9]} 65. Kh3 {[%clk 0:00:04.7]}
65... Rb4 {[%clk 0:00:12.4]} 66. Rf1 {[%clk 0:00:04.8]} 66... Rxb5 {[%clk
0:00:11]} 67. Rf7+ {[%clk 0:00:05.3]} 67... Kc6 {[%clk 0:00:11.5]} 68. Rxa7
{[%clk 0:00:06.2]} 68... Ra5 {[%clk 0:00:12.1]} 69. Ra8 {[%clk 0:00:06.8]} 69...
Kb5 {[%clk 0:00:11.6]} 70. Kxh4 {[%clk 0:00:07.1]} 70... g2 {[%clk 0:00:11]} 71.
Rg8 {[%clk 0:00:06.9]} 71... Rxa6 {[%clk 0:00:11]} 72. Rxg2 {[%clk 0:00:07.8]}
72... Kc4 {[%clk 0:00:09.9]} 73. Kg5 {[%clk 0:00:07.4]} 73... b5 {[%clk
0:00:10.2]} 74. Kf4 {[%clk 0:00:07.6]} 74... b4 {[%clk 0:00:10.6]} 75. Rc2+
{[%clk 0:00:07.9]} 75... Kd3 {[%clk 0:00:10.5]} 76. Rc8 {[%clk 0:00:07.2]} 76...
Rb6 {[%clk 0:00:10]} 0-1

[Event "Late-Titled-Tuesday-Blitz-May-28-2024"]
[Site "Chess.com"]
[Date "2024.05.28"]
[Round "9"]
[White "jaskol95"]
[Black "ManMish2"]
[Result "1/2-1/2"]
[WhiteElo "2551"]
[BlackElo "2662"]
[TimeControl "180+1"]
[EndTime "15:46:10 PDT"]
[Termination "Game drawn by stalemate"]

1. e4 {[%clk 0:03:00.9]} 1... e5 {[%clk 0:02:58.9]} 2. Nc3 {[%clk 0:02:59]} 2...
Nc6 {[%clk 0:02:58.9]} 3. Bc4 {[%clk 0:02:58.6]} 3... Nf6 {[%clk 0:02:57.6]} 4.
d3 {[%clk 0:02:59]} 4... Bc5 {[%clk 0:02:57.6]} 5. Nf3 {[%clk 0:02:56]} 5... d6
{[%clk 0:02:54.6]} 6. h3 {[%clk 0:02:53.8]} 6... O-O {[%clk 0:02:51]} 7. Bg5
{[%clk 0:02:52.6]} 7... h6 {[%clk 0:02:23.1]} 8. Bh4 {[%clk 0:02:53]} 8... Be6
{[%clk 0:02:20.8]} 9. Nd5 {[%clk 0:02:43.4]} 9... Bxd5 {[%clk 0:02:06.8]} 10.
Bxd5 {[%clk 0:02:43.5]} 10... g5 {[%clk 0:01:44.5]} 11. Nxg5 {[%clk 0:02:16.4]}
11... hxg5 {[%clk 0:01:36.1]} 12. Bxg5 {[%clk 0:02:16.2]} 12... Nd4 {[%clk
0:01:34.5]} 13. c3 {[%clk 0:02:04.2]} 13... Ne6 {[%clk 0:01:32.8]} 14. Bh4
{[%clk 0:02:04.7]} 14... Nf4 {[%clk 0:01:29.8]} 15. Qf3 {[%clk 0:02:01.6]} 15...
Kg7 {[%clk 0:01:05.4]} 16. d4 {[%clk 0:01:40.1]} 16... Bb6 {[%clk 0:01:01.5]}
17. O-O-O {[%clk 0:01:38.5]} 17... Qe7 {[%clk 0:00:54]} 18. g3 {[%clk
0:01:28.1]} 18... N4xd5 {[%clk 0:00:44.9]} 19. exd5 {[%clk 0:01:29]} 19... Rh8
{[%clk 0:00:44]} 20. Qf5 {[%clk 0:01:24.6]} 20... Rh6 {[%clk 0:00:38.1]} 21. Bg5
{[%clk 0:01:19.1]} 21... Rhh8 {[%clk 0:00:22.2]} 22. Bh4 {[%clk 0:01:04.2]}
22... Rh6 {[%clk 0:00:14]} 23. Bg5 {[%clk 0:01:02.4]} 23... Re8 {[%clk
0:00:13.4]} 24. Bxh6+ {[%clk 0:00:58.9]} 24... Kxh6 {[%clk 0:00:14.3]} 25. g4
{[%clk 0:00:57.2]} 25... Kg7 {[%clk 0:00:14.1]} 26. h4 {[%clk 0:00:53.2]} 26...
exd4 {[%clk 0:00:12.9]} 27. Rde1 {[%clk 0:00:49]} 27... Qxe1+ {[%clk 0:00:12.3]}
28. Rxe1 {[%clk 0:00:49.3]} 28... Rxe1+ {[%clk 0:00:12.7]} 29. Kd2 {[%clk
0:00:49.8]} 29... Re5 {[%clk 0:00:13.4]} 30. Qc8 {[%clk 0:00:46.1]} 30... dxc3+
{[%clk 0:00:13.7]} 31. Kxc3 {[%clk 0:00:45.9]} 31... Nxd5+ {[%clk 0:00:13.9]}
32. Kd2 {[%clk 0:00:46.1]} 32... Bxf2 {[%clk 0:00:13.8]} 33. Qxb7 {[%clk
0:00:45.6]} 33... Bxh4 {[%clk 0:00:13.8]} 34. Qxa7 {[%clk 0:00:44.8]} 34... Bg5+
{[%clk 0:00:14.4]} 35. Kd3 {[%clk 0:00:44.6]} 35... Be3 {[%clk 0:00:15]} 36. Qa8
{[%clk 0:00:43.1]} 36... Nf4+ {[%clk 0:00:15.1]} 37. Kc2 {[%clk 0:00:42]} 37...
Rc5+ {[%clk 0:00:15.4]} 38. Kb3 {[%clk 0:00:42.2]} 38... Ne6 {[%clk 0:00:14.4]}
39. a4 {[%clk 0:00:38]} 39... Nd4+ {[%clk 0:00:13.7]} 40. Kb4 {[%clk 0:00:38]}
40... Bd2+ {[%clk 0:00:13.4]} 41. Ka3 {[%clk 0:00:37.3]} 41... Rc1 {[%clk
0:00:12.3]} 42. Ka2 {[%clk 0:00:32.2]} 42... Rc2 {[%clk 0:00:12.2]} 43. Qe4
{[%clk 0:00:29.9]} 43... Bc3 {[%clk 0:00:09.9]} 44. Qxc2 {[%clk 0:00:12.8]}
44... Nxc2 {[%clk 0:00:09.1]} 45. bxc3 {[%clk 0:00:13.5]} 45... Ne3 {[%clk
0:00:09.6]} 46. a5 {[%clk 0:00:11.4]} 46... Nc4 {[%clk 0:00:10]} 47. a6 {[%clk
0:00:11.2]} 47... Nb6 {[%clk 0:00:10.5]} 48. Kb3 {[%clk 0:00:12]} 48... Kf6
{[%clk 0:00:10.5]} 49. Kb4 {[%clk 0:00:12.6]} 49... Ke5 {[%clk 0:00:10.8]} 50.
Kb5 {[%clk 0:00:13.1]} 50... Kd5 {[%clk 0:00:10.4]} 51. a7 {[%clk 0:00:12.8]}
51... Na8 {[%clk 0:00:10.4]} 52. c4+ {[%clk 0:00:12.1]} 52... Kd4 {[%clk
0:00:09.8]} 53. Kc6 {[%clk 0:00:12.7]} 53... Kxc4 {[%clk 0:00:09.5]} 54. Kb7
{[%clk 0:00:13.4]} 54... Nb6 {[%clk 0:00:09.7]} 55. Kxc7 {[%clk 0:00:14.1]}
55... Kc5 {[%clk 0:00:10.2]} 56. Kd8 {[%clk 0:00:09.5]} 56... d5 {[%clk
0:00:10.5]} 57. Ke7 {[%clk 0:00:10.1]} 57... d4 {[%clk 0:00:11]} 58. Kxf7 {[%clk
0:00:10.9]} 58... d3 {[%clk 0:00:11.4]} 59. g5 {[%clk 0:00:11.8]} 59... d2
{[%clk 0:00:11.6]} 60. g6 {[%clk 0:00:12.7]} 60... d1=Q {[%clk 0:00:11.2]} 61.
g7 {[%clk 0:00:13.6]} 61... Qf3+ {[%clk 0:00:11.3]} 62. Ke8 {[%clk 0:00:12]}
62... Qa8+ {[%clk 0:00:11.6]} 63. Kf7 {[%clk 0:00:10.2]} 63... Qxa7+ {[%clk
0:00:12.5]} 64. Kg6 {[%clk 0:00:10.8]} 64... Qb8 {[%clk 0:00:12.9]} 65. Kh7
{[%clk 0:00:11]} 65... Qc7 {[%clk 0:00:12.9]} 66. Kh8 {[%clk 0:00:11]} 66... Qe5
{[%clk 0:00:12.7]} 67. Kh7 {[%clk 0:00:11.1]} 67... Qh5+ {[%clk 0:00:12.6]} 68.
Kg8 {[%clk 0:00:11.7]} 68... Nc8 {[%clk 0:00:12.5]} 69. Kf8 {[%clk 0:00:11.7]}
69... Nd6 {[%clk 0:00:12.3]} 70. g8=Q {[%clk 0:00:10.7]} 70... Qf5+ {[%clk
0:00:11.6]} 71. Ke7 {[%clk 0:00:06.5]} 71... Qe5+ {[%clk 0:00:10.5]} 72. Qe6
{[%clk 0:00:05.6]} 72... Qg7+ {[%clk 0:00:10.3]} 73. Kd8 {[%clk 0:00:04.8]}
73... Nb7+ {[%clk 0:00:10.2]} 74. Kc8 {[%clk 0:00:04.9]} 74... Nd6+ {[%clk
0:00:10.7]} 75. Kd8 {[%clk 0:00:05.3]} 75... Kc6 {[%clk 0:00:10.8]} 76. Qd5+
{[%clk 0:00:00.9]} 76... Kxd5 {[%clk 0:00:05.1]} 1/2-1/2

[Event "Late-Titled-Tuesday-Blitz-May-28-2024"]
[Site "Chess.com"]
[Date "2024.05.28"]
[Round "9"]
[White "luca_va99"]
[Black "Qvalda"]
[Result "1-0"]
[WhiteElo "2210"]
[BlackElo "2383"]
[TimeControl "180+1"]
[EndTime "15:46:16 PDT"]
[Termination "luca_va99 won on time"]

1. e4 {[%clk 0:02:56.5]} 1... d5 {[%clk 0:02:55.4]} 2. exd5 {[%clk 0:02:54.6]}
2... Qxd5 {[%clk 0:02:53.4]} 3. Nc3 {[%clk 0:02:55]} 3... Qd8 {[%clk 0:02:52]}
4. d4 {[%clk 0:02:52]} 4... Nf6 {[%clk 0:02:50.7]} 5. Nf3 {[%clk 0:02:50.4]}
5... g6 {[%clk 0:02:50.9]} 6. Be2 {[%clk 0:02:45.2]} 6... Bg7 {[%clk 0:02:51.3]}
7. O-O {[%clk 0:02:44.3]} 7... O-O {[%clk 0:02:50.6]} 8. Be3 {[%clk 0:02:44.4]}
8... Bg4 {[%clk 0:02:49.4]} 9. h3 {[%clk 0:02:43.2]} 9... Bxf3 {[%clk
0:02:49.1]} 10. Bxf3 {[%clk 0:02:44.1]} 10... Nc6 {[%clk 0:02:48.4]} 11. Re1
{[%clk 0:02:38.4]} 11... e6 {[%clk 0:02:47.2]} 12. Rb1 {[%clk 0:02:25.2]} 12...
Nd5 {[%clk 0:02:44.9]} 13. Nxd5 {[%clk 0:02:24.7]} 13... exd5 {[%clk 0:02:44.3]}
14. c3 {[%clk 0:02:22.8]} 14... Ne7 {[%clk 0:02:40.5]} 15. Bg5 {[%clk
0:02:19.7]} 15... f6 {[%clk 0:02:24.7]} 16. Qe2 {[%clk 0:02:18.9]} 16... Nf5
{[%clk 0:02:18.6]} 17. Qe6+ {[%clk 0:02:16.3]} 17... Kh8 {[%clk 0:02:17.9]} 18.
Bd2 {[%clk 0:02:16]} 18... c6 {[%clk 0:02:16.3]} 19. g4 {[%clk 0:02:03.1]} 19...
Nh4 {[%clk 0:02:03.3]} 20. Bg2 {[%clk 0:01:53.8]} 20... Nxg2 {[%clk 0:01:57]}
21. Kxg2 {[%clk 0:01:54.7]} 21... f5 {[%clk 0:01:57.6]} 22. Qe7 {[%clk
0:01:25.8]} 22... fxg4 {[%clk 0:01:48.9]} 23. hxg4 {[%clk 0:01:21]} 23... Qc8
{[%clk 0:01:29.8]} 24. Re6 {[%clk 0:01:00.5]} 24... c5 {[%clk 0:01:23.7]} 25.
dxc5 {[%clk 0:00:48.7]} 25... d4 {[%clk 0:01:20.6]} 26. cxd4 {[%clk 0:00:44.4]}
26... Bxd4 {[%clk 0:01:16.5]} 27. f3 {[%clk 0:00:44.5]} 27... Qxc5 {[%clk
0:01:01.3]} 28. Bc3 {[%clk 0:00:32.3]} 28... Kg8 {[%clk 0:00:49.3]} 29. Qxc5
{[%clk 0:00:29.4]} 29... Bxc5 {[%clk 0:00:49.5]} 30. Re5 {[%clk 0:00:21.3]}
30... Bb6 {[%clk 0:00:44.9]} 31. Re7 {[%clk 0:00:20.7]} 31... Rf7 {[%clk
0:00:43.9]} 32. Rbe1 {[%clk 0:00:19]} 32... Raf8 {[%clk 0:00:39.4]} 33. Rxf7
{[%clk 0:00:17]} 33... Kxf7 {[%clk 0:00:39.2]} 34. Rh1 {[%clk 0:00:12.8]} 34...
Kg8 {[%clk 0:00:36.5]} 35. Rd1 {[%clk 0:00:10.5]} 35... Rf7 {[%clk 0:00:32.5]}
36. Re1 {[%clk 0:00:08.5]} 36... Rd7 {[%clk 0:00:28.5]} 37. Re8+ {[%clk
0:00:08.5]} 37... Kf7 {[%clk 0:00:28.3]} 38. Rh8 {[%clk 0:00:08.3]} 38... Ke6
{[%clk 0:00:28.4]} 39. Re8+ {[%clk 0:00:07.7]} 39... Kd5 {[%clk 0:00:28.4]} 40.
Rh8 {[%clk 0:00:05]} 40... Kc4 {[%clk 0:00:27.7]} 41. Kg3 {[%clk 0:00:04]} 41...
Kd3 {[%clk 0:00:27.6]} 42. Kf4 {[%clk 0:00:02.2]} 42... Kc2 {[%clk 0:00:21.4]}
43. Kg3 {[%clk 0:00:02.4]} 43... Kb1 {[%clk 0:00:20.9]} 44. a3 {[%clk 0:00:03]}
44... Kc2 {[%clk 0:00:20.5]} 45. Kh4 {[%clk 0:00:02.4]} 45... Bd8+ {[%clk
0:00:18.1]} 46. Kg3 {[%clk 0:00:02.6]} 46... Bg5 {[%clk 0:00:16.3]} 47. f4
{[%clk 0:00:02.2]} 47... Bd8 {[%clk 0:00:15.6]} 48. Kf2 {[%clk 0:00:01.3]} 48...
Kd3 {[%clk 0:00:14.7]} 49. Kf3 {[%clk 0:00:01.3]} 49... Bc7 {[%clk 0:00:14]} 50.
Re8 {[%clk 0:00:01.6]} 50... Rf7 {[%clk 0:00:13.6]} 51. Be5 {[%clk 0:00:01.5]}
51... Bxe5 {[%clk 0:00:13.2]} 52. Rxe5 {[%clk 0:00:02.4]} 52... Kc2 {[%clk
0:00:10.7]} 53. Rb5 {[%clk 0:00:02.5]} 53... b6 {[%clk 0:00:10.6]} 54. Rb4
{[%clk 0:00:02.9]} 54... Kd3 {[%clk 0:00:06.1]} 55. Rb3+ {[%clk 0:00:02.6]}
55... Kc4 {[%clk 0:00:05.9]} 56. Rc3+ {[%clk 0:00:02.4]} 56... Kd5 {[%clk
0:00:06.1]} 57. Rd3+ {[%clk 0:00:02]} 57... Kc4 {[%clk 0:00:06]} 58. Rc3+ {[%clk
0:00:02.6]} 58... Kd5 {[%clk 0:00:06.3]} 59. Rd3+ {[%clk 0:00:02.8]} 59... Kc5
{[%clk 0:00:06.1]} 60. Rc3+ {[%clk 0:00:02.8]} 60... Kb5 {[%clk 0:00:06.6]} 61.
Ke4 {[%clk 0:00:02.7]} 61... Re7+ {[%clk 0:00:05.4]} 62. Kf3 {[%clk 0:00:01.5]}
62... Rf7 {[%clk 0:00:04.3]} 63. Ke4 {[%clk 0:00:01.1]} 63... a5 {[%clk
0:00:04.8]} 64. f5 {[%clk 0:00:01.3]} 64... gxf5+ {[%clk 0:00:04.4]} 65. gxf5
{[%clk 0:00:01.3]} 65... h5 {[%clk 0:00:05.3]} 66. Kf4 {[%clk 0:00:01.6]} 66...
Ka4 {[%clk 0:00:03.7]} 67. Kg5 {[%clk 0:00:01.7]} 67... b5 {[%clk 0:00:04.1]}
68. Kg6 {[%clk 0:00:01.9]} 68... Rf8 {[%clk 0:00:03.2]} 69. f6 {[%clk
0:00:01.6]} 69... b4 {[%clk 0:00:03.1]} 70. axb4 {[%clk 0:00:02.2]} 70... axb4
{[%clk 0:00:04]} 71. Rf3 {[%clk 0:00:01.8]} 71... b3 {[%clk 0:00:03.2]} 72. Kg7
{[%clk 0:00:02]} 72... Rb8 {[%clk 0:00:02.5]} 73. f7 {[%clk 0:00:02.7]} 73... h4
{[%clk 0:00:02.8]} 74. f8=Q {[%clk 0:00:02.8]} 74... Rxf8 {[%clk 0:00:02.2]} 75.
Kxf8 {[%clk 0:00:03.6]} 75... Kb4 {[%clk 0:00:01.8]} 76. Rh3 {[%clk 0:00:03.8]}
76... Kc4 {[%clk 0:00:01.9]} 77. Ke7 {[%clk 0:00:04]} 77... Kd4 {[%clk
0:00:01.7]} 78. Kd6 {[%clk 0:00:04.3]} 78... Ke4 {[%clk 0:00:01.2]} 79. Kc5
{[%clk 0:00:04]} 79... Kf4 {[%clk 0:00:01.2]} 80. Rxh4+ {[%clk 0:00:04.4]} 80...
Ke3 {[%clk 0:00:01.4]} 81. Rb4 {[%clk 0:00:05.2]} 81... Kd2 {[%clk 0:00:02.1]}
82. Rxb3 {[%clk 0:00:05.9]} 82... Kc2 {[%clk 0:00:02.8]} 83. Rb8 {[%clk
0:00:06.7]} 1-0